[Event "NJSK 2021 Jeugd B"]
[Site "Almelo, Netherlands"]
[Date "2021.08.03"]
[Round "3.4"]
[White "Yeh, Timo"]
[Black "Kien, Clovis"]
[Result "1/2-1/2"]
[TimeControl "90min/40moves + 30min + 30sec/move"]
[WhiteElo "1819"]
[BlackElo "1683"]

1. c4 {[%clk 01:30:56]} Nf6 {[%clk 01:30:36]} {[%emt 00:00:24]} 2. Nc3 {[%clk
01:31:20]} {[%emt 00:00:06]} g6 {[%clk 01:30:34]} {[%emt 00:00:33]} 3. g3
{[%clk 01:31:45]} {[%emt 00:00:05]} Bg7 {[%clk 01:30:46]} {[%emt 00:00:17]} 4.
Bg2 {[%clk 01:32:11]} {[%emt 00:00:05]} O-O {[%clk 01:30:06]} {[%emt 00:01:10]}
5. Nf3 {[%clk 01:32:31]} {[%emt 00:00:10]} d5 {[%clk 01:29:00]} {[%emt
00:01:35]} 6. cxd5 {[%clk 01:32:47]} {[%emt 00:00:16]} Nxd5 {[%clk 01:29:17]}
{[%emt 00:00:13]} 7. d4 {[%clk 01:32:55]} {[%emt 00:00:22]} c5 {[%clk
01:22:22]} {[%emt 00:07:25]} 8. e4 {[%clk 01:29:02]} {[%emt 00:04:23]} Nxc3
{[%clk 01:20:42]} {[%emt 00:02:10]} 9. bxc3 {[%clk 01:29:31]} {[%emt 00:00:01]}
Nc6 {[%clk 01:20:59]} {[%emt 00:00:13]} 10. Be3 {[%clk 01:28:53]} {[%emt
00:01:09]} Bg4 {[%clk 01:16:26]} {[%emt 00:05:03]} 11. e5 {[%clk 01:28:03]}
{[%emt 00:01:20]} Qa5 {[%clk 01:15:44]} {[%emt 00:01:12]} 12. O-O {[%clk
01:24:58]} {[%emt 00:03:35]} Rad8 {[%clk 01:10:13]} {[%emt 00:06:00]} 13. Qb3
{[%clk 01:23:14]} {[%emt 00:02:14]} Bxf3 {[%clk 00:55:26]} {[%emt 00:15:16]} 14.
Bxf3 {[%clk 01:23:37]} {[%emt 00:00:07]} cxd4 {[%clk 00:55:49]} {[%emt
00:00:08]} 15. cxd4 {[%clk 01:24:03]} {[%emt 00:00:03]} Nxd4 {[%clk 00:56:05]}
{[%emt 00:00:14]} 16. Bxd4 {[%clk 01:23:41]} {[%emt 00:00:52]} Rxd4 {[%clk
00:56:30]} {[%emt 00:00:05]} 17. Qxb7 {[%clk 01:23:43]} {[%emt 00:00:28]} Qxe5
{[%clk 00:38:55]} {[%emt 00:18:05]} 18. Rae1 {[%clk 01:21:27]} {[%emt
00:02:47]} Qf5 {[%clk 00:36:40]} {[%emt 00:02:44]} 19. Rxe7 {[%clk 01:21:07]}
{[%emt 00:00:49]} Bf6 {[%clk 00:28:36]} {[%emt 00:08:34]} 20. Re2 {[%clk
01:19:03]} {[%emt 00:02:35]} Rfd8 {[%clk 00:21:52]} {[%emt 00:07:15]} 21. Re3
{[%clk 01:10:46]} {[%emt 00:08:47]} Rd2 {[%clk 00:19:15]} {[%emt 00:03:07]} 22.
Be4 {[%clk 01:09:56]} {[%emt 00:01:20]} Qc5 {[%clk 00:15:06]} {[%emt 00:04:39]}
23. Rf3 {[%clk 01:08:37]} {[%emt 00:01:49]} R8d7 {[%clk 00:14:02]} {[%emt
00:01:34]} 24. Qb3 {[%clk 00:48:14]} {[%emt 00:20:52]} Kg7 {[%clk 00:13:35]}
{[%emt 00:00:57]} 25. Bd3 {[%clk 00:37:39]} {[%emt 00:11:05]} Rb2 {[%clk
00:07:31]} {[%emt 00:06:34]} 26. Qa4 {[%clk 00:37:11]} {[%emt 00:00:59]} Rd4
{[%clk 00:07:43]} {[%emt 00:00:18]} 27. Qe8 {[%clk 00:34:59]} {[%emt 00:02:42]}
Rd8 {[%clk 00:06:32]} {[%emt 00:01:41]} 28. Qe4 {[%clk 00:34:24]} {[%emt
00:01:05]} Rb4 {[%clk 00:04:19]} {[%emt 00:02:42]} 29. Qe1 {[%clk 00:32:16]}
{[%emt 00:02:39]} Rbd4 {[%clk 00:04:11]} {[%emt 00:00:38]} 30. Qe2 {[%clk
00:32:02]} {[%emt 00:00:44]} Rb4 {[%clk 00:03:49]} {[%emt 00:00:52]} 31. Rd1
{[%clk 00:22:49]} {[%emt 00:09:43]} Rb2 {[%clk 00:04:02]} {[%emt 00:00:17]} 32.
Qe4 {[%clk 00:23:01]} {[%emt 00:00:18]} Rb4 {[%clk 00:04:07]} {[%emt 00:00:25]}
33. Qe1 {[%clk 00:22:57]} {[%emt 00:00:34]} Rb2 {[%clk 00:03:32]} {[%emt
00:01:05]} 34. Rc1 {[%clk 00:19:26]} {[%emt 00:04:01]} Qd5 {[%clk 00:03:52]}
{[%emt 00:00:10]} 35. Kg2 {[%clk 00:17:00]} {[%emt 00:02:55]} Qb7 {[%clk
00:02:24]} {[%emt 00:01:53]} 36. Be4 {[%clk 00:17:15]} {[%emt 00:00:20]} Qe7
{[%clk 00:02:32]} {[%emt 00:00:22]} 37. Qe3 {[%clk 00:10:47]} {[%emt 00:06:58]}
Rxa2 {[%clk 00:01:13]} {[%emt 00:01:49]} 38. Rb1 {[%clk 00:10:35]} {[%emt
00:00:42]} Rad2 {[%clk 00:01:18]} {[%emt 00:00:24]} 39. Rb7 {[%clk 00:10:28]}
{[%emt 00:00:38]} R2d7 {[%clk 00:01:37]} {[%emt 00:00:11]} 40. Qxa7 {[%clk
00:10:24]} {[%emt 00:00:33]} Rxb7 {[%clk 00:00:54]} {[%emt 00:01:15]} 41. Qxb7
{[%clk 00:09:25]} {[%emt 00:01:28]} Qxb7 {[%clk 00:01:21]} {[%emt 00:00:03]} 42.
Bxb7 {[%clk 00:09:54]} {[%emt 00:00:01]} Rd2 {[%clk 00:01:26]} {[%emt
00:00:25]} 43. Ba6 {[%clk 00:09:56]} {[%emt 00:00:27]} Bd4 {[%clk 00:01:38]}
{[%emt 00:00:18]} 44. g4 {[%clk 00:10:10]} {[%emt 00:00:16]} g5 {[%clk
00:01:19]} {[%emt 00:00:49]} 45. Bc4 {[%clk 00:09:11]} {[%emt 00:01:29]} f6
{[%clk 00:00:57]} {[%emt 00:00:51]} 46. Be6 {[%clk 00:08:45]} {[%emt 00:00:56]}
h5 {[%clk 00:00:53]} {[%emt 00:00:34]} 47. gxh5 {[%clk 00:06:53]} {[%emt
00:02:22]} Rxf2+ {[%clk 00:01:04]} {[%emt 00:00:19]} 1/2-1/2

[Event "NJSK 2021 Jeugd B"]
[Site "Almelo, Netherlands"]
[Date "2021.08.03"]
[Round "3.5"]
[White "Zubair, Saad"]
[Black "Shadrin, Mitia"]
[Result "0-1"]
[TimeControl "90min/40moves + 30min + 30sec/move"]
[WhiteElo "1645"]
[BlackElo "1698"]

1. d4 {[%clk 01:30:58]} d5 {[%clk 01:30:55]} {[%emt 00:00:05]} 2. c4 {[%clk
01:31:22]} {[%emt 00:00:07]} e6 {[%clk 01:31:16]} {[%emt 00:00:09]} 3. Nc3
{[%clk 01:31:35]} {[%emt 00:00:17]} Nf6 {[%clk 01:31:41]} {[%emt 00:00:05]} 4.
Bg5 {[%clk 01:31:33]} {[%emt 00:00:31]} c6 {[%clk 01:32:06]} {[%emt 00:00:05]}
5. Nf3 {[%clk 01:30:11]} {[%emt 00:01:52]} Nbd7 {[%clk 01:31:13]} {[%emt
00:01:22]} 6. a3 {[%clk 01:25:10]} {[%emt 00:05:31]} Be7 {[%clk 01:25:51]}
{[%emt 00:05:52]} 7. Nd2 {[%clk 01:24:53]} {[%emt 00:00:47]} h6 {[%clk
01:25:11]} {[%emt 00:01:09]} 8. Bf4 {[%clk 01:22:09]} {[%emt 00:03:14]} O-O
{[%clk 01:23:47]} {[%emt 00:01:54]} 9. e3 {[%clk 01:18:40]} {[%emt 00:04:00]}
dxc4 {[%clk 01:22:26]} {[%emt 00:01:51]} 10. Bxc4 {[%clk 01:12:49]} {[%emt
00:06:20]} Nb6 {[%clk 01:21:29]} {[%emt 00:01:27]} 11. Be2 {[%clk 01:10:38]}
{[%emt 00:02:42]} Nbd5 {[%clk 01:20:46]} {[%emt 00:01:13]} 12. Bg3 {[%clk
01:09:51]} {[%emt 00:01:17]} Nxc3 {[%clk 01:19:29]} {[%emt 00:01:47]} 13. bxc3
{[%clk 01:10:05]} {[%emt 00:00:16]} Nd5 {[%clk 01:17:15]} {[%emt 00:02:44]} 14.
Qc2 {[%clk 01:03:55]} {[%emt 00:06:40]} b6 {[%clk 01:14:01]} {[%emt 00:03:45]}
15. Bf3 {[%clk 01:03:15]} {[%emt 00:01:10]} Bb7 {[%clk 01:13:29]} {[%emt
00:01:01]} 16. O-O {[%clk 01:02:47]} {[%emt 00:01:00]} Rc8 {[%clk 01:13:12]}
{[%emt 00:00:46]} 17. Qd3 {[%clk 00:55:33]} {[%emt 00:07:44]} Qd7 {[%clk
01:11:33]} {[%emt 00:02:09]} 18. Nc4 {[%clk 00:54:47]} {[%emt 00:01:16]} Ba6
{[%clk 01:09:57]} {[%emt 00:02:05]} 19. Nxb6 {[%clk 00:43:02]} {[%emt
00:12:15]} Qb7 {[%clk 01:09:38]} {[%emt 00:00:49]} 20. Nc4 {[%clk 00:37:33]}
{[%emt 00:06:00]} Qb3 {[%clk 01:08:41]} {[%emt 00:01:24]} 21. Rfb1 {[%clk
00:28:06]} {[%emt 00:09:59]} Qxc4 {[%clk 01:08:33]} {[%emt 00:00:38]} 22. Qxc4
{[%clk 00:28:05]} {[%emt 00:00:32]} Bxc4 {[%clk 01:08:52]} {[%emt 00:00:10]} 23.
Rb7 {[%clk 00:27:11]} {[%emt 00:01:25]} Bf6 {[%clk 01:08:35]} {[%emt 00:00:47]}
24. Bxd5 {[%clk 00:23:10]} {[%emt 00:04:30]} cxd5 {[%clk 01:08:04]} {[%emt
00:01:00]} 25. Rxa7 {[%clk 00:23:25]} {[%emt 00:00:16]} Ra8 {[%clk 01:08:12]}
{[%emt 00:00:21]} 26. Rd7 {[%clk 00:19:28]} {[%emt 00:04:20]} Bb5 {[%clk
01:07:58]} {[%emt 00:00:49]} 27. Rb7 {[%clk 00:19:44]} {[%emt 00:00:16]} Bc6
{[%clk 01:08:21]} {[%emt 00:00:07]} 28. Rb6 {[%clk 00:18:28]} {[%emt 00:01:47]}
Rfc8 {[%clk 01:08:30]} {[%emt 00:00:18]} 29. h3 {[%clk 00:18:38]} {[%emt
00:00:23]} Bd8 {[%clk 01:08:01]} {[%emt 00:00:56]} 30. Rb4 {[%clk 00:16:20]}
{[%emt 00:02:53]} Bc7 {[%clk 01:08:04]} {[%emt 00:00:26]} 31. f4 {[%clk
00:11:30]} {[%emt 00:05:20]} Ra4 {[%clk 01:07:39]} {[%emt 00:00:54]} 32. Be1
{[%clk 00:09:59]} {[%emt 00:02:01]} Rca8 {[%clk 01:07:57]} {[%emt 00:00:12]} 33.
Rb3 {[%clk 00:10:08]} {[%emt 00:00:21]} Rb8 {[%clk 01:06:13]} {[%emt 00:02:14]}
34. Rxb8+ {[%clk 00:06:05]} {[%emt 00:04:33]} Bxb8 {[%clk 01:06:23]} {[%emt
00:00:20]} 35. Bd2 {[%clk 00:06:11]} {[%emt 00:00:24]} Bd6 {[%clk 01:05:30]}
{[%emt 00:01:22]} 36. Bc1 {[%clk 00:05:55]} {[%emt 00:00:46]} Ra7 {[%clk
01:05:40]} {[%emt 00:00:20]} 37. Kf2 {[%clk 00:03:01]} {[%emt 00:03:25]} Rb7
{[%clk 01:05:33]} {[%emt 00:00:36]} 38. Ke1 {[%clk 00:02:53]} {[%emt 00:00:38]}
Rb3 {[%clk 01:05:15]} {[%emt 00:00:48]} 39. Kd2 {[%clk 00:02:13]} {[%emt
00:01:10]} Ba4 {[%clk 01:05:38]} {[%emt 00:00:07]} 40. Ra2 {[%clk 00:01:33]}
{[%emt 00:01:11]} Rb1 {[%clk 01:05:52]} {[%emt 00:00:15]} 41. g3 {[%clk
00:01:35]} {[%emt 00:00:28]} Kf8 {[%clk 01:06:09]} {[%emt 00:00:13]} 42. g4
{[%clk 00:01:48]} {[%emt 00:00:18]} g5 {[%clk 01:06:11]} {[%emt 00:00:28]} 43.
fxg5 {[%clk 00:00:48]} {[%emt 00:01:29]} hxg5 {[%clk 01:06:33]} {[%emt
00:00:08]} 44. Rb2 {[%clk 00:29:03]} {[%emt 00:02:16]} Rxc1 {[%clk 01:36:49]}
{[%emt 00:00:14]} 45. Rb6 {[%clk 00:25:37]} {[%emt 00:03:56]} Rc2+ {[%clk
01:36:51]} {[%emt 00:00:27]} 46. Kd3 {[%clk 00:25:55]} {[%emt 00:00:13]} Rh2
{[%clk 01:36:11]} {[%emt 00:01:08]} 47. Rxd6 {[%clk 00:26:13]} {[%emt
00:00:13]} Bc2# {[%clk 01:36:32]} {[%emt 00:00:09]} 0-1

[Event "NJSK 2021 Jeugd B"]
[Site "Almelo, Netherlands"]
[Date "2021.08.03"]
[Round "3.6"]
[White "Wierenga, Jael"]
[Black "Boeren, Jurriaan"]
[Result "0-1"]
[TimeControl "90min/40moves + 30min + 30sec/move"]
[WhiteElo "1565"]
[BlackElo "1614"]

1. d4 {[%clk 01:30:59]} {[%emt 00:00:01]} d5 {[%clk 01:30:55]} {[%emt
00:00:05]} 2. Bf4 {[%clk 01:31:24]} {[%emt 00:00:05]} e6 {[%clk 01:31:21]}
{[%emt 00:00:04]} 3. e3 {[%clk 01:31:46]} {[%emt 00:00:08]} c5 {[%clk
01:31:45]} {[%emt 00:00:06]} 4. Nf3 {[%clk 01:31:56]} {[%emt 00:00:20]} Bd6
{[%clk 01:32:07]} {[%emt 00:00:08]} 5. Bg3 {[%clk 01:32:20]} {[%emt 00:00:05]}
Nf6 {[%clk 01:32:31]} {[%emt 00:00:06]} 6. Nbd2 {[%clk 01:31:18]} {[%emt
00:01:32]} O-O {[%clk 01:31:29]} {[%emt 00:01:33]} 7. c3 {[%clk 01:30:56]}
{[%emt 00:00:53]} Qc7 {[%clk 01:31:48]} {[%emt 00:00:11]} 8. dxc5 {[%clk
01:29:58]} {[%emt 00:01:28]} Qxc5 {[%clk 01:31:57]} {[%emt 00:00:21]} 9. Bd3
{[%clk 01:30:05]} {[%emt 00:00:23]} Qc7 {[%clk 01:20:43]} {[%emt 00:11:43]} 10.
Qe2 {[%clk 01:28:18]} {[%emt 00:02:17]} Nbd7 {[%clk 01:18:42]} {[%emt
00:02:31]} 11. Rd1 {[%clk 01:26:18]} {[%emt 00:02:31]} h6 {[%clk 01:12:50]}
{[%emt 00:06:22]} 12. e4 {[%clk 01:21:51]} {[%emt 00:04:57]} Bxg3 {[%clk
01:12:40]} {[%emt 00:00:40]} 13. hxg3 {[%clk 01:22:17]} {[%emt 00:00:04]} dxe4
{[%clk 01:12:34]} {[%emt 00:00:35]} 14. Nxe4 {[%clk 01:22:37]} {[%emt
00:00:09]} b6 {[%clk 01:09:42]} {[%emt 00:03:24]} 15. Nfd2 {[%clk 01:13:44]}
{[%emt 00:09:23]} Bb7 {[%clk 01:00:50]} {[%emt 00:09:22]} 16. g4 {[%clk
01:04:20]} {[%emt 00:09:53]} Qf4 {[%clk 00:38:52]} {[%emt 00:22:28]} 17. f3
{[%clk 00:57:40]} {[%emt 00:07:10]} Nxe4 {[%clk 00:33:26]} {[%emt 00:05:56]} 18.
Nxe4 {[%clk 00:57:44]} {[%emt 00:00:26]} Ne5 {[%clk 00:29:53]} {[%emt
00:04:04]} 19. Bc2 {[%clk 00:50:31]} {[%emt 00:07:42]} Rad8 {[%clk 00:24:12]}
{[%emt 00:06:11]} 20. O-O {[%clk 00:48:16]} {[%emt 00:02:46]} Bxe4 {[%clk
00:19:26]} {[%emt 00:05:16]} 21. Bxe4 {[%clk 00:47:00]} {[%emt 00:01:46]} Rc8
{[%clk 00:13:45]} {[%emt 00:06:11]} 22. Rd4 {[%clk 00:45:36]} {[%emt 00:01:53]}
Qf6 {[%clk 00:12:48]} {[%emt 00:01:28]} 23. Rfd1 {[%clk 00:43:56]} {[%emt
00:02:10]} Rfd8 {[%clk 00:11:31]} {[%emt 00:01:47]} 24. Qb5 {[%clk 00:38:59]}
{[%emt 00:05:26]} Rxd4 {[%clk 00:08:04]} {[%emt 00:03:57]} 25. Rxd4 {[%clk
00:38:55]} {[%emt 00:00:35]} Qh4 {[%clk 00:05:58]} {[%emt 00:02:36]} 26. Bh7+
{[%clk 00:28:08]} {[%emt 00:11:17]} Kxh7 {[%clk 00:06:07]} {[%emt 00:00:21]} 27.
Qxe5 {[%clk 00:28:34]} {[%emt 00:00:04]} Rd8 {[%clk 00:04:58]} {[%emt
00:01:40]} 28. g3 {[%clk 00:19:50]} {[%emt 00:09:13]} Qe7 {[%clk 00:04:54]}
{[%emt 00:00:33]} 29. Kf2 {[%clk 00:17:33]} {[%emt 00:02:48]} Rxd4 {[%clk
00:04:17]} {[%emt 00:01:07]} 30. Qxd4 {[%clk 00:17:39]} {[%emt 00:00:25]} Qc7
{[%clk 00:02:14]} {[%emt 00:02:33]} 31. a4 {[%clk 00:16:15]} {[%emt 00:01:53]}
a5 {[%clk 00:02:04]} {[%emt 00:00:40]} 32. f4 {[%clk 00:14:48]} {[%emt
00:01:57]} Qc6 {[%clk 00:01:49]} {[%emt 00:00:46]} 33. Ke3 {[%clk 00:13:31]}
{[%emt 00:01:47]} g6 {[%clk 00:02:16]} {[%emt 00:00:04]} 34. Kd3 {[%clk
00:11:58]} {[%emt 00:02:04]} Qf3+ {[%clk 00:02:09]} {[%emt 00:00:37]} 35. Qe3
{[%clk 00:12:13]} {[%emt 00:00:14]} Qd1+ {[%clk 00:02:28]} {[%emt 00:00:10]} 36.
Qd2 {[%clk 00:10:29]} {[%emt 00:02:15]} Qxa4 {[%clk 00:02:51]} {[%emt
00:00:08]} 37. Qe1 {[%clk 00:06:55]} {[%emt 00:04:03]} Qb5+ {[%clk 00:02:41]}
{[%emt 00:00:41]} 38. Kc2 {[%clk 00:06:38]} {[%emt 00:00:46]} Qd5 {[%clk
00:03:06]} {[%emt 00:00:06]} 39. Qe3 {[%clk 00:06:33]} {[%emt 00:00:35]} b5
{[%clk 00:02:27]} {[%emt 00:01:09]} 40. Qe5 {[%clk 00:05:39]} {[%emt 00:01:23]}
Qg2+ {[%clk 00:01:45]} {[%emt 00:01:12]} 41. Kb3 {[%clk 00:05:10]} {[%emt
00:00:59]} a4+ {[%clk 00:01:18]} {[%emt 00:00:57]} 42. Ka3 {[%clk 00:05:22]}
{[%emt 00:00:19]} Qc6 {[%clk 00:00:57]} {[%emt 00:00:51]} 43. Kb4 {[%clk
00:04:06]} {[%emt 00:01:45]} Qc4+ {[%clk 00:24:37]} {[%emt 00:06:50]} 44. Ka5
{[%clk 00:34:28]} {[%emt 00:00:08]} a3 {[%clk 00:17:53]} {[%emt 00:07:14]} 45.
bxa3 {[%clk 00:33:30]} {[%emt 00:01:28]} Qa4+ {[%clk 00:18:13]} {[%emt
00:00:10]} 46. Kb6 {[%clk 00:33:35]} {[%emt 00:00:24]} Qxa3 {[%clk 00:18:39]}
{[%emt 00:00:04]} 47. Kxb5 {[%clk 00:33:33]} {[%emt 00:00:31]} Qb3+ {[%emt
00:00:34]} 48. Kc5 g5 49. Kd6 gxf4 50. gxf4 Qa3+ 51. Kd7 Qa7+ 52. Qc7 Qxc7+ 53.
Kxc7 f5 54. gxf5 exf5 55. c4 h5 56. c5 h4 57. Kd6 h3 58. c6 h2 59. c7 h1=Q 60.
c8=Q Qe4 61. Qd7+ Kg6 62. Qe6 Kh5 63. Qxe4 fxe4 64. f5 e3 65. f6 Kg6 66. Ke7 e2
67. f7 e1=Q+ 68. Kf8 Qf2 69. Kg8 Qxf7+ 70. Kh8 Qe8# {[%clk 00:18:36]} 0-1

[Event "NJSK 2021 Jeugd B"]
[Site "Almelo, Netherlands"]
[Date "2021.08.03"]
[Round "3.7"]
[White "Goudriaan, Rafael"]
[Black "Aarts, Joaquin"]
[Result "1/2-1/2"]
[TimeControl "90min/40moves + 30min + 30sec/move"]
[WhiteElo "1677"]
[BlackElo "1736"]

1. e4 {[%clk 01:30:58]} {[%emt 00:00:01]} c5 {[%clk 01:30:50]} {[%emt
00:00:10]} 2. Nc3 {[%clk 01:31:26]} {[%emt 00:00:02]} a6 {[%clk 01:31:12]}
{[%emt 00:00:08]} 3. f4 {[%clk 01:31:39]} {[%emt 00:00:16]} b5 {[%clk
01:31:35]} {[%emt 00:00:08]} 4. Nf3 {[%clk 01:31:31]} {[%emt 00:00:39]} Bb7
{[%clk 01:31:55]} {[%emt 00:00:09]} 5. d3 {[%clk 01:30:51]} {[%emt 00:01:09]}
e6 {[%clk 01:32:10]} {[%emt 00:00:16]} 6. Be2 {[%clk 01:30:04]} {[%emt
00:01:16]} d5 {[%clk 01:32:19]} {[%emt 00:00:21]} 7. f5 {[%clk 01:26:41]}
{[%emt 00:03:53]} b4 {[%clk 01:31:03]} {[%emt 00:01:47]} 8. fxe6 {[%clk
01:25:44]} {[%emt 00:01:27]} bxc3 {[%clk 01:27:32]} {[%emt 00:04:02]} 9. exf7+
{[%clk 01:25:52]} {[%emt 00:00:21]} Kxf7 {[%clk 01:27:33]} {[%emt 00:00:29]} 10.
Ng5+ {[%clk 01:20:25]} {[%emt 00:05:56]} Ke8 {[%clk 01:27:08]} {[%emt
00:00:55]} 11. Bh5+ {[%clk 01:16:43]} {[%emt 00:04:09]} g6 {[%clk 01:25:46]}
{[%emt 00:01:56]} 12. Qf3 {[%clk 01:12:20]} {[%emt 00:04:52]} Qf6 {[%clk
01:21:10]} {[%emt 00:05:07]} 13. O-O {[%clk 01:09:53]} {[%emt 00:02:57]} Qxf3
{[%emt 00:16:53]} 14. Bxf3 {[%clk 01:10:21]} dxe4 {[%clk 01:05:19]} {[%emt
00:00:30]} 15. Nxe4 {[%clk 01:11:01]} {[%emt 00:00:20]} Ra7 {[%clk 01:01:17]}
{[%emt 00:04:32]} 16. bxc3 {[%clk 01:10:09]} {[%emt 00:01:21]} Bxe4 {[%clk
00:59:18]} {[%emt 00:02:29]} 17. Bxe4 {[%clk 01:10:23]} {[%emt 00:00:16]} Bd6
{[%clk 00:59:07]} {[%emt 00:00:42]} 18. Rb1 {[%clk 01:07:15]} {[%emt 00:03:38]}
Ne7 {[%clk 00:57:17]} {[%emt 00:02:20]} 19. Rf6 {[%clk 01:06:13]} {[%emt
00:01:24]} Kd7 {[%clk 00:55:41]} {[%emt 00:02:14]} 20. Ba3 {[%clk 01:03:52]}
{[%emt 00:02:51]} Be5 {[%clk 00:44:36]} {[%emt 00:11:35]} 21. Rf7 {[%clk
01:00:40]} {[%emt 00:03:36]} Ke6 {[%clk 00:43:47]} {[%emt 00:01:26]} 22. Bxc5
{[%clk 00:57:54]} {[%emt 00:03:16]} Rc7 {[%clk 00:43:33]} {[%emt 00:00:44]} 23.
Rxe7+ {[%clk 00:58:00]} {[%emt 00:00:24]} Rxe7 {[%clk 00:42:49]} {[%emt
00:01:15]} 24. Bxe7 {[%clk 00:58:28]} {[%emt 00:00:02]} Kxe7 {[%clk 00:43:09]}
{[%emt 00:00:09]} 25. d4 {[%clk 00:58:10]} {[%emt 00:00:47]} Bc7 {[%clk
00:41:06]} {[%emt 00:02:34]} 26. Rb7 {[%clk 00:57:22]} {[%emt 00:01:17]} Rc8
{[%clk 00:41:17]} {[%emt 00:00:20]} 27. c4 {[%clk 00:56:22]} {[%emt 00:01:28]}
Kf6 {[%emt 00:07:22]} 28. c5 {[%clk 00:54:55]} {[%emt 00:01:54]} Re8 {[%clk
00:30:50]} {[%emt 00:04:09]} 29. Rxc7 {[%clk 00:50:46]} {[%emt 00:04:39]} Rxe4
{[%clk 00:29:51]} {[%emt 00:01:29]} 30. Rc8 {[%clk 00:50:29]} {[%emt 00:00:48]}
Nd7 {[%clk 00:26:56]} {[%emt 00:03:25]} 31. c6 {[%clk 00:50:38]} {[%emt
00:00:19]} Nb6 {[%clk 00:15:52]} {[%emt 00:11:36]} 32. Rb8 {[%clk 00:50:58]}
{[%emt 00:00:08]} Nd5 {[%clk 00:13:06]} {[%emt 00:03:17]} 33. c4 {[%clk
00:51:16]} {[%emt 00:00:12]} Nc7 {[%clk 00:08:59]} {[%emt 00:04:36]} 34. d5
{[%clk 00:51:32]} {[%emt 00:00:14]} Rxc4 {[%clk 00:07:55]} {[%emt 00:01:35]} 35.
d6 {[%clk 00:51:47]} {[%emt 00:00:14]} Rxc6 {[%clk 00:06:39]} {[%emt 00:01:47]}
36. dxc7 {[%clk 00:52:05]} {[%emt 00:00:12]} Rxc7 {[%clk 00:07:02]} {[%emt
00:00:07]} 37. Rb6+ {[%clk 00:52:33]} {[%emt 00:00:03]} Ke5 {[%clk 00:07:12]}
{[%emt 00:00:21]} 38. Rxa6 {[%clk 00:52:52]} {[%emt 00:00:10]} Kd5 {[%clk
00:06:54]} {[%emt 00:00:48]} 39. Kf2 {[%clk 00:52:43]} {[%emt 00:00:38]} Kc4
{[%clk 00:07:02]} {[%emt 00:00:23]} 40. a4 {[%clk 00:52:33]} {[%emt 00:00:40]}
Kb4 {[%clk 00:07:01]} {[%emt 00:00:30]} 41. Kg3 {[%clk 00:52:31]} {[%emt
00:00:31]} Rc3+ {[%clk 00:05:59]} {[%emt 00:01:33]} 42. Kh4 {[%clk 00:52:33]}
{[%emt 00:00:22]} Rc2 {[%clk 00:04:20]} {[%emt 00:02:14]} 43. Kh3 {[%clk
00:52:34]} {[%emt 00:00:29]} Rc5 {[%clk 00:01:08]} {[%emt 00:03:43]} 44. g3
{[%clk 00:52:29]} {[%emt 00:00:31]} Rc7 {[%clk 00:29:38]} {[%emt 00:02:04]} 45.
Kh4 {[%clk 01:21:03]} {[%emt 00:01:56]} Rd7 {[%clk 00:21:47]} {[%emt 00:08:22]}
46. g4 {[%clk 01:20:39]} {[%emt 00:00:53]} Rc7 {[%clk 00:20:47]} {[%emt
00:01:31]} 47. Kg5 {[%clk 01:20:13]} {[%emt 00:00:55]} Rc2 {[%clk 00:19:18]}
{[%emt 00:02:00]} 48. h4 {[%clk 01:20:34]} {[%emt 00:00:09]} Rc5+ {[%clk
00:18:32]} {[%emt 00:01:16]} 49. Kh6 {[%clk 01:20:54]} {[%emt 00:00:08]} Rc4
{[%clk 00:18:00]} {[%emt 00:01:03]} 50. Kg5 {[%clk 01:19:08]} {[%emt 00:02:16]}
Rc5+ {[%clk 00:16:42]} {[%emt 00:01:49]} 51. Kf4 {[%clk 01:15:36]} {[%emt
00:04:02]} Rc4 {[%clk 00:16:56]} {[%emt 00:00:15]} 52. Kf3 {[%clk 01:16:05]}
Rc3+ {[%clk 00:17:08]} {[%emt 00:00:20]} 53. Kf4 {[%clk 01:05:06]} {[%emt
00:11:29]} Rc4 {[%clk 00:17:08]} {[%emt 00:00:31]} 54. Ke3 {[%emt 00:01:02]}
1/2-1/2